[Event "Early-Titled-Tuesday-Blitz-October-10-2023"]
[Site "Chess.com"]
[Date "2023.10.10"]
[Round "1"]
[White "Legendinunknown"]
[Black "kleopl"]
[Result "1-0"]
[WhiteElo "2820"]
[BlackElo "2458"]
[TimeControl "180+1"]
[EndTime "8:06:40 PDT"]
[Termination "Legendinunknown won by resignation"]

1. e4 {[%clk 0:03:00.9]} 1... c5 {[%clk 0:02:59.3]} 2. Nf3 {[%clk 0:02:58.7]}
2... d6 {[%clk 0:02:58.5]} 3. d4 {[%clk 0:02:58.6]} 3... cxd4 {[%clk 0:02:59.4]}
4. Nxd4 {[%clk 0:02:59.2]} 4... Nf6 {[%clk 0:02:59.8]} 5. Nc3 {[%clk 0:02:59.2]}
5... a6 {[%clk 0:02:59.5]} 6. Qf3 {[%clk 0:02:58.3]} 6... g6 {[%clk 0:02:52.7]}
7. h3 {[%clk 0:02:57.4]} 7... Bg7 {[%clk 0:02:51.7]} 8. Be3 {[%clk 0:02:57.6]}
8... O-O {[%clk 0:02:46.5]} 9. g4 {[%clk 0:02:57.3]} 9... Nc6 {[%clk 0:02:41.5]}
10. O-O-O {[%clk 0:02:55.4]} 10... Bd7 {[%clk 0:02:36.1]} 11. Kb1 {[%clk
0:02:54.1]} 11... b5 {[%clk 0:02:30.8]} 12. Qg2 {[%clk 0:02:49.4]} 12... b4
{[%clk 0:02:23.5]} 13. Nce2 {[%clk 0:02:42.1]} 13... a5 {[%clk 0:02:17.1]} 14.
f4 {[%clk 0:02:41.2]} 14... a4 {[%clk 0:02:14.2]} 15. Ng3 {[%clk 0:02:38.4]}
15... Qa5 {[%clk 0:01:53.1]} 16. e5 {[%clk 0:02:37.3]} 16... Nxd4 {[%clk
0:01:22.1]} 17. exf6 {[%clk 0:02:33.7]} 17... Bc6 {[%clk 0:01:08.4]} 18. Qf2
{[%clk 0:02:10.8]} 18... Bxf6 {[%clk 0:00:47.5]} 19. Bxd4 {[%clk 0:02:08.6]}
19... Bxd4 {[%clk 0:00:44.9]} 20. Qxd4 {[%clk 0:02:09.5]} 20... Bxh1 {[%clk
0:00:45]} 21. Nxh1 {[%clk 0:02:10.4]} 21... b3 {[%clk 0:00:44]} 22. cxb3 {[%clk
0:02:08.3]} 22... axb3 {[%clk 0:00:43.9]} 23. a3 {[%clk 0:02:08.9]} 23... Rfc8
{[%clk 0:00:39.5]} 24. Bc4 {[%clk 0:02:05.1]} 24... Qa4 {[%clk 0:00:29.6]} 25.
Bd5 {[%clk 0:01:52.2]} 25... Qxd4 {[%clk 0:00:20.4]} 26. Rxd4 {[%clk 0:01:53.1]}
26... Rab8 {[%clk 0:00:20.8]} 27. Rd3 {[%clk 0:01:51.8]} 27... Rc2 {[%clk
0:00:14.8]} 28. Ng3 {[%clk 0:01:39.7]} 28... Rh2 {[%clk 0:00:13.1]} 29. Nf1
{[%clk 0:01:38.1]} 29... Rf2 {[%clk 0:00:12.4]} 30. Nd2 {[%clk 0:01:37]} 30...
Rxf4 {[%clk 0:00:12]} 31. Bxb3 {[%clk 0:01:35.9]} 31... Rc8 {[%clk 0:00:10.2]}
32. Ka2 {[%clk 0:01:33.7]} 32... h5 {[%clk 0:00:09.1]} 33. gxh5 {[%clk
0:01:31.3]} 33... gxh5 {[%clk 0:00:10]} 34. a4 {[%clk 0:01:28.7]} 34... Ra8
{[%clk 0:00:08.1]} 35. Ka3 {[%clk 0:01:26.8]} 35... Ra6 {[%clk 0:00:07.8]} 36.
Bd1 {[%clk 0:01:26.7]} 36... e6 {[%clk 0:00:05.1]} 37. b4 {[%clk 0:01:25.6]}
37... d5 {[%clk 0:00:04.1]} 38. Bxh5 {[%clk 0:01:24.8]} 38... f5 {[%clk
0:00:03.6]} 39. Nf3 {[%clk 0:01:21.8]} 39... Kg7 {[%clk 0:00:03.6]} 40. a5
{[%clk 0:01:20.5]} 40... Kf6 {[%clk 0:00:03.5]} 41. Ka4 {[%clk 0:01:17.6]} 41...
Rd6 {[%clk 0:00:03.1]} 42. Kb5 {[%clk 0:01:16.6]} 42... d4 {[%clk 0:00:03.6]}
43. a6 {[%clk 0:01:16]} 43... e5 {[%clk 0:00:04.1]} 44. a7 {[%clk 0:01:15.7]}
44... Rd8 {[%clk 0:00:04.3]} 45. Ra3 {[%clk 0:01:14.9]} 45... Rh4 {[%clk
0:00:04]} 46. Nxh4 {[%clk 0:01:14.4]} 1-0

[Event "Early-Titled-Tuesday-Blitz-October-10-2023"]
[Site "Chess.com"]
[Date "2023.10.10"]
[Round "1"]
[White "FrenchMonster2002"]
[Black "yosephtaher"]
[Result "0-1"]
[WhiteElo "2457"]
[BlackElo "2829"]
[TimeControl "180+1"]
[EndTime "8:06:43 PDT"]
[Termination "yosephtaher won by resignation"]

1. e4 {[%clk 0:02:56.3]} 1... c5 {[%clk 0:02:59.3]} 2. Nc3 {[%clk 0:02:55.5]}
2... g6 {[%clk 0:02:59.9]} 3. h4 {[%clk 0:02:55.4]} 3... h5 {[%clk 0:02:59.7]}
4. d4 {[%clk 0:02:55.7]} 4... cxd4 {[%clk 0:03:00.6]} 5. Qxd4 {[%clk 0:02:56.5]}
5... Nf6 {[%clk 0:03:01.3]} 6. Bg5 {[%clk 0:02:57.3]} 6... Nc6 {[%clk
0:03:01.6]} 7. Qd2 {[%clk 0:02:58]} 7... Bg7 {[%clk 0:03:02.1]} 8. O-O-O {[%clk
0:02:58.8]} 8... Qa5 {[%clk 0:03:02.5]} 9. f3 {[%clk 0:02:58.8]} 9... d6 {[%clk
0:03:03]} 10. Nge2 {[%clk 0:02:57.4]} 10... Be6 {[%clk 0:03:02.8]} 11. Kb1
{[%clk 0:02:56.7]} 11... Nd7 {[%clk 0:03:01.4]} 12. Nd5 {[%clk 0:02:45.9]} 12...
Qxd2 {[%clk 0:02:59.8]} 13. Nc7+ {[%clk 0:02:44]} 13... Kd8 {[%clk 0:02:55.3]}
14. Nxe6+ {[%clk 0:02:44.9]} 14... fxe6 {[%clk 0:02:56]} 15. Rxd2 {[%clk
0:02:45.8]} 15... e5 {[%clk 0:02:52.3]} 16. Rxd6 {[%clk 0:02:45.1]} 16... Bf6
{[%clk 0:02:50.3]} 17. Rd2 {[%clk 0:02:35]} 17... Bxg5 {[%clk 0:02:50.2]} 18.
hxg5 {[%clk 0:02:35.9]} 18... Ke8 {[%clk 0:02:48.5]} 19. g3 {[%clk 0:02:31.4]}
19... Nc5 {[%clk 0:02:45.8]} 20. Bg2 {[%clk 0:02:26.1]} 20... Rd8 {[%clk
0:02:43.1]} 21. Rxd8+ {[%clk 0:02:25.3]} 21... Kxd8 {[%clk 0:02:44]} 22. c3
{[%clk 0:02:22.5]} 22... Rf8 {[%clk 0:02:42.8]} 23. Rd1+ {[%clk 0:02:14.2]}
23... Kc7 {[%clk 0:02:42.1]} 24. Rd2 {[%clk 0:02:12.8]} 24... Ne6 {[%clk
0:02:42.2]} 25. Ng1 {[%clk 0:01:49.1]} 25... Nxg5 {[%clk 0:02:40.9]} 26. Kc2
{[%clk 0:01:48.8]} 26... b6 {[%clk 0:02:39.4]} 27. b4 {[%clk 0:01:48.1]} 27...
Nd8 {[%clk 0:02:39.5]} 28. a4 {[%clk 0:01:43.6]} 28... Nb7 {[%clk 0:02:39.6]}
29. Kb3 {[%clk 0:01:43]} 29... Nd6 {[%clk 0:02:38.8]} 30. c4 {[%clk 0:01:29.2]}
30... a5 {[%clk 0:02:38]} 31. c5 {[%clk 0:01:28.5]} 31... bxc5 {[%clk
0:02:32.8]} 32. bxc5 {[%clk 0:01:28.9]} 32... Nb7 {[%clk 0:02:33.5]} 33. Kc4
{[%clk 0:01:24.3]} 33... Ne6 {[%clk 0:02:13.4]} 34. Rd5 {[%clk 0:01:21.3]} 34...
Nexc5 {[%clk 0:02:13.8]} 35. Rxe5 {[%clk 0:01:09.6]} 35... Kd6 {[%clk
0:02:07.7]} 36. f4 {[%clk 0:01:04.7]} 36... Nxa4 {[%clk 0:01:38.4]} 37. Rd5+
{[%clk 0:00:38.8]} 37... Kc7 {[%clk 0:01:33.8]} 38. e5 {[%clk 0:00:28.5]} 38...
Nb6+ {[%clk 0:01:32.8]} 39. Kb5 {[%clk 0:00:26.9]} 39... Nxd5 {[%clk 0:01:33.7]}
40. Bxd5 {[%clk 0:00:27.7]} 40... Rd8 {[%clk 0:01:32.4]} 41. Kc4 {[%clk
0:00:25.1]} 41... a4 {[%clk 0:01:32]} 42. Ne2 {[%clk 0:00:24]} 42... Na5+ {[%clk
0:01:31.6]} 43. Kc5 {[%clk 0:00:22.6]} 43... Nb3+ {[%clk 0:01:28.4]} 44. Kc4
{[%clk 0:00:22.9]} 44... a3 {[%clk 0:01:27.7]} 45. Nc3 {[%clk 0:00:22.1]} 45...
Nc1 {[%clk 0:01:28.4]} 46. Nb5+ {[%clk 0:00:21.6]} 46... Kb6 {[%clk 0:01:27.5]}
47. Nxa3 {[%clk 0:00:21.9]} 47... Ne2 {[%clk 0:01:27.1]} 48. Bf7 {[%clk
0:00:19.4]} 48... Rd4+ {[%clk 0:01:27.6]} 49. Kb3 {[%clk 0:00:18.6]} 49... Nxg3
{[%clk 0:01:26.9]} 50. Bxg6 {[%clk 0:00:15.7]} 50... Rxf4 {[%clk 0:01:27.2]} 51.
Nc4+ {[%clk 0:00:13.4]} 51... Kc5 {[%clk 0:01:27.5]} 52. Nd2 {[%clk 0:00:13.4]}
52... h4 {[%clk 0:01:27.7]} 53. Kc3 {[%clk 0:00:13.7]} 53... h3 {[%clk
0:01:28.3]} 54. Kd3 {[%clk 0:00:11.8]} 54... h2 {[%clk 0:01:28.9]} 0-1

[Event "Early-Titled-Tuesday-Blitz-October-10-2023"]
[Site "Chess.com"]
[Date "2023.10.10"]
[Round "1"]
[White "TomLiu777"]
[Black "play1ngtheangel"]
[Result "0-1"]
[WhiteElo "2350"]
[BlackElo "2639"]
[TimeControl "180+1"]
[EndTime "8:06:43 PDT"]
[Termination "play1ngtheangel won on time"]

1. c4 {[%clk 0:02:55.8]} 1... Nf6 {[%clk 0:02:59.5]} 2. Nc3 {[%clk 0:02:55]}
2... e5 {[%clk 0:03:00]} 3. Nf3 {[%clk 0:02:54.1]} 3... Nc6 {[%clk 0:03:00.6]}
4. e4 {[%clk 0:02:54.6]} 4... Bc5 {[%clk 0:02:59.6]} 5. Nxe5 {[%clk 0:02:54.7]}
5... Nxe5 {[%clk 0:02:57.6]} 6. d4 {[%clk 0:02:55.3]} 6... Bb4 {[%clk
0:02:57.3]} 7. dxe5 {[%clk 0:02:55.9]} 7... Nxe4 {[%clk 0:02:58]} 8. Qf3 {[%clk
0:02:56.1]} 8... d5 {[%clk 0:02:53]} 9. Be2 {[%clk 0:02:55.4]} 9... O-O {[%clk
0:02:51.4]} 10. O-O {[%clk 0:02:53.9]} 10... Bxc3 {[%clk 0:02:41.5]} 11. bxc3
{[%clk 0:02:53.8]} 11... c6 {[%clk 0:02:42.4]} 12. Bd3 {[%clk 0:02:46.1]} 12...
f5 {[%clk 0:02:38.5]} 13. cxd5 {[%clk 0:02:28.1]} 13... cxd5 {[%clk 0:02:28.8]}
14. c4 {[%clk 0:02:19]} 14... Be6 {[%clk 0:02:21.7]} 15. Ba3 {[%clk 0:02:04.7]}
15... Rf7 {[%clk 0:02:20.5]} 16. Rad1 {[%clk 0:01:56.9]} 16... Qa5 {[%clk
0:02:14.5]} 17. Bb2 {[%clk 0:01:36.1]} 17... dxc4 {[%clk 0:02:11.8]} 18. Bxe4
{[%clk 0:01:28.8]} 18... fxe4 {[%clk 0:02:12.7]} 19. Qxe4 {[%clk 0:01:28.1]}
19... c3 {[%clk 0:02:13.3]} 20. Bc1 {[%clk 0:01:21.2]} 20... Qxa2 {[%clk
0:02:11.7]} 21. f4 {[%clk 0:01:14.4]} 21... Bf5 {[%clk 0:02:09.9]} 22. Qe1
{[%clk 0:01:06.3]} 22... Rc8 {[%clk 0:02:09.2]} 23. e6 {[%clk 0:01:01.7]} 23...
Qxe6 {[%clk 0:02:08.5]} 24. Qf2 {[%clk 0:00:59.5]} 24... b5 {[%clk 0:02:04.2]}
25. Rfe1 {[%clk 0:00:51.6]} 25... Qc6 {[%clk 0:02:04.2]} 26. Qh4 {[%clk
0:00:45.8]} 26... b4 {[%clk 0:02:01.3]} 27. g4 {[%clk 0:00:42.5]} 27... Bc2
{[%clk 0:01:56.2]} 28. Rd8+ {[%clk 0:00:36.2]} 28... Rxd8 {[%clk 0:01:56.4]} 29.
Qxd8+ {[%clk 0:00:36.9]} 29... Rf8 {[%clk 0:01:57.2]} 30. Qe7 {[%clk 0:00:27.7]}
30... b3 {[%clk 0:01:55.4]} 31. Ba3 {[%clk 0:00:25]} 31... Rc8 {[%clk
0:01:45.4]} 32. Re6 {[%clk 0:00:24.1]} 32... Qf3 {[%clk 0:01:22.6]} 33. Rd6
{[%clk 0:00:17.5]} 33... Qxg4+ {[%clk 0:01:21.8]} 34. Kh1 {[%clk 0:00:12.2]}
34... h6 {[%clk 0:01:01]} 35. Rd8+ {[%clk 0:00:03.9]} 35... Rxd8 {[%clk
0:01:01.2]} 36. Qxd8+ {[%clk 0:00:04.6]} 36... Kh7 {[%clk 0:01:02]} 37. Qc7
{[%clk 0:00:03.2]} 37... b2 {[%clk 0:01:02.5]} 0-1

[Event "Early-Titled-Tuesday-Blitz-October-10-2023"]
[Site "Chess.com"]
[Date "2023.10.10"]
[Round "1"]
[White "SchachmattTV_Tobi"]
[Black "KejJaj"]
[Result "1-0"]
[WhiteElo "2573"]
[BlackElo "2194"]
[TimeControl "180+1"]
[EndTime "8:06:43 PDT"]
[Termination "SchachmattTV_Tobi won by resignation"]

1. d4 {[%clk 0:02:59]} 1... f5 {[%clk 0:02:59.4]} 2. c4 {[%clk 0:02:58.9]} 2...
Nf6 {[%clk 0:02:59.3]} 3. Nc3 {[%clk 0:02:58.7]} 3... e6 {[%clk 0:02:59.8]} 4.
g3 {[%clk 0:02:58.3]} 4... d5 {[%clk 0:02:58.1]} 5. Bg2 {[%clk 0:02:55.3]} 5...
c6 {[%clk 0:02:58.7]} 6. Nf3 {[%clk 0:02:54.5]} 6... Bd6 {[%clk 0:02:59.1]} 7.
O-O {[%clk 0:02:53.9]} 7... O-O {[%clk 0:02:59.5]} 8. Qc2 {[%clk 0:02:53.3]}
8... b6 {[%clk 0:02:54.7]} 9. b3 {[%clk 0:02:39.4]} 9... Ne4 {[%clk 0:02:49.6]}
10. Bf4 {[%clk 0:02:34.7]} 10... Bxf4 {[%clk 0:02:48.5]} 11. gxf4 {[%clk
0:02:35]} 11... Bb7 {[%clk 0:02:39.1]} 12. Ne5 {[%clk 0:02:34.3]} 12... Nd7
{[%clk 0:02:37.3]} 13. Rac1 {[%clk 0:02:20.6]} 13... Nxe5 {[%clk 0:02:35.2]} 14.
fxe5 {[%clk 0:02:19.7]} 14... Kh8 {[%clk 0:02:22.6]} 15. Nxe4 {[%clk 0:02:06.3]}
15... fxe4 {[%clk 0:02:22.1]} 16. f3 {[%clk 0:02:06.6]} 16... exf3 {[%clk
0:02:00.9]} 17. Rxf3 {[%clk 0:02:04.3]} 17... Rxf3 {[%clk 0:01:55.1]} 18. exf3
{[%clk 0:01:54.3]} 18... Qh4 {[%clk 0:01:55.6]} 19. Qf2 {[%clk 0:01:51.8]} 19...
Qg5 {[%clk 0:01:52.7]} 20. f4 {[%clk 0:01:50.2]} 20... Qg6 {[%clk 0:01:51.2]}
21. Qg3 {[%clk 0:01:46.9]} 21... Qh6 {[%clk 0:01:45.3]} 22. Qg5 {[%clk
0:01:36.3]} 22... Qxg5 {[%clk 0:01:35]} 23. fxg5 {[%clk 0:01:36.2]} 23... Rf8
{[%clk 0:01:35.6]} 24. cxd5 {[%clk 0:01:09.3]} 24... exd5 {[%clk 0:01:36.1]} 25.
Rf1 {[%clk 0:00:56.1]} 25... Kg8 {[%clk 0:01:32.5]} 26. Rxf8+ {[%clk 0:00:52.5]}
26... Kxf8 {[%clk 0:01:33.4]} 27. Kf2 {[%clk 0:00:53.1]} 27... Bc8 {[%clk
0:01:31.8]} 28. b4 {[%clk 0:00:50.1]} 28... Kf7 {[%clk 0:01:31]} 29. Ke3 {[%clk
0:00:47.9]} 29... Kg6 {[%clk 0:01:28.8]} 30. Kf4 {[%clk 0:00:48.1]} 30... h6
{[%clk 0:01:28.3]} 31. gxh6 {[%clk 0:00:44.5]} 31... gxh6 {[%clk 0:01:26.8]} 32.
Bf3 {[%clk 0:00:44.4]} 32... h5 {[%clk 0:01:25.4]} 33. b5 {[%clk 0:00:41.2]}
33... Bd7 {[%clk 0:01:17.5]} 34. h4 {[%clk 0:00:36.7]} 34... Be8 {[%clk
0:01:10.3]} 35. Bg2 {[%clk 0:00:32.8]} 35... Bd7 {[%clk 0:01:10.6]} 36. a3
{[%clk 0:00:33.2]} 36... Kh6 {[%clk 0:01:06.2]} 37. e6 {[%clk 0:00:29.9]} 37...
Bxe6 {[%clk 0:01:04.7]} 38. bxc6 {[%clk 0:00:29.5]} 38... Kg6 {[%clk 0:01:04.2]}
39. Ke5 {[%clk 0:00:29.7]} 39... Bc8 {[%clk 0:01:00]} 40. Bxd5 {[%clk
0:00:30.3]} 40... a6 {[%clk 0:00:55.2]} 41. Be6 {[%clk 0:00:29.5]} 41... Bxe6
{[%clk 0:00:34.8]} 42. Kxe6 {[%clk 0:00:30.4]} 42... b5 {[%clk 0:00:33.6]} 43.
c7 {[%clk 0:00:31.2]} 43... b4 {[%clk 0:00:33.5]} 44. c8=Q {[%clk 0:00:32.1]}
44... bxa3 {[%clk 0:00:33.3]} 45. Qg8+ {[%clk 0:00:32.6]} 45... Kh6 {[%clk
0:00:32.9]} 46. Kf6 {[%clk 0:00:33.5]} 1-0

[Event "Early-Titled-Tuesday-Blitz-October-10-2023"]
[Site "Chess.com"]
[Date "2023.10.10"]
[Round "1"]
[White "almaguerjm"]
[Black "Krakozia"]
[Result "0-1"]
[WhiteElo "2513"]
[BlackElo "3015"]
[TimeControl "180+1"]
[EndTime "8:06:44 PDT"]
[Termination "Krakozia won by checkmate"]

1. e4 {[%clk 0:02:55.8]} 1... c5 {[%clk 0:02:59.9]} 2. Nf3 {[%clk 0:02:55]} 2...
e6 {[%clk 0:03:00.4]} 3. d4 {[%clk 0:02:54.9]} 3... cxd4 {[%clk 0:03:00.5]} 4.
Nxd4 {[%clk 0:02:55.8]} 4... a6 {[%clk 0:03:00.7]} 5. c4 {[%clk 0:02:53.5]} 5...
Nf6 {[%clk 0:03:00.2]} 6. Bd3 {[%clk 0:02:53.4]} 6... Nc6 {[%clk 0:02:57.4]} 7.
Nxc6 {[%clk 0:02:51.5]} 7... dxc6 {[%clk 0:02:57.4]} 8. O-O {[%clk 0:02:51.7]}
8... e5 {[%clk 0:02:57]} 9. Qc2 {[%clk 0:02:51.9]} 9... Bc5 {[%clk 0:02:53.4]}
10. Nd2 {[%clk 0:02:52.3]} 10... a5 {[%clk 0:02:47.6]} 11. Nb3 {[%clk 0:02:46]}
11... Be7 {[%clk 0:02:43.7]} 12. Be3 {[%clk 0:02:40.6]} 12... Ng4 {[%clk
0:02:40.7]} 13. Bc5 {[%clk 0:02:23.3]} 13... a4 {[%clk 0:02:36.9]} 14. Bxe7
{[%clk 0:02:23.1]} 14... Qxe7 {[%clk 0:02:35]} 15. Nd2 {[%clk 0:02:19.4]} 15...
Qc5 {[%clk 0:02:29.4]} 16. b3 {[%clk 0:02:09.7]} 16... O-O {[%clk 0:02:26.5]}
17. Rab1 {[%clk 0:02:08.8]} 17... Rd8 {[%clk 0:02:18.4]} 18. Nf3 {[%clk
0:02:05.3]} 18... axb3 {[%clk 0:02:14.8]} 19. axb3 {[%clk 0:02:05.5]} 19... Ra3
{[%clk 0:02:09.6]} 20. Rfd1 {[%clk 0:01:51]} 20... Be6 {[%clk 0:01:58.7]} 21. h3
{[%clk 0:01:49.2]} 21... Nf6 {[%clk 0:01:55.9]} 22. Qb2 {[%clk 0:01:41.4]} 22...
Qb4 {[%clk 0:01:20.7]} 23. Nxe5 {[%clk 0:01:29.2]} 23... h6 {[%clk 0:01:20.2]}
24. Qc2 {[%clk 0:01:24.2]} 24... Rda8 {[%clk 0:01:18.2]} 25. Nf3 {[%clk
0:01:22.1]} 25... Nd7 {[%clk 0:01:14.8]} 26. Qd2 {[%clk 0:01:18.8]} 26... Qxd2
{[%clk 0:01:05.6]} 27. Rxd2 {[%clk 0:01:18.7]} 27... Nc5 {[%clk 0:01:05.7]} 28.
Bc2 {[%clk 0:01:15.8]} 28... Na6 {[%clk 0:01:00]} 29. e5 {[%clk 0:01:05.8]}
29... Nb4 {[%clk 0:00:58.3]} 30. Be4 {[%clk 0:01:06.1]} 30... Ra2 {[%clk
0:00:43.8]} 31. Rdd1 {[%clk 0:01:02.2]} 31... Re8 {[%clk 0:00:35.8]} 32. Nd4
{[%clk 0:00:44]} 32... Bc8 {[%clk 0:00:35.8]} 33. f4 {[%clk 0:00:44.3]} 33... g5
{[%clk 0:00:34.8]} 34. g3 {[%clk 0:00:43.3]} 34... gxf4 {[%clk 0:00:31.7]} 35.
gxf4 {[%clk 0:00:42.2]} 35... Kh8 {[%clk 0:00:31.2]} 36. Bg2 {[%clk 0:00:38]}
36... Rg8 {[%clk 0:00:30]} 37. f5 {[%clk 0:00:34.1]} 37... Rgxg2+ {[%clk
0:00:27.7]} 38. Kf1 {[%clk 0:00:33.3]} 38... Raf2+ {[%clk 0:00:25.9]} 39. Ke1
{[%clk 0:00:33.7]} 39... Bxf5 {[%clk 0:00:21.3]} 40. Nxf5 {[%clk 0:00:30.9]}
40... Nc2# {[%clk 0:00:21]} 0-1

[Event "Early-Titled-Tuesday-Blitz-October-10-2023"]
[Site "Chess.com"]
[Date "2023.10.10"]
[Round "1"]
[White "stasOR4ik"]
[Black "Alonmindlin"]
[Result "1-0"]
[WhiteElo "2435"]
[BlackElo "2710"]
[TimeControl "180+1"]
[EndTime "8:06:44 PDT"]
[Termination "stasOR4ik won by resignation"]

1. e4 {[%clk 0:03:00.9]} 1... e5 {[%clk 0:02:57.8]} 2. Nf3 {[%clk 0:03:00.4]}
2... Nc6 {[%clk 0:02:57.5]} 3. Bb5 {[%clk 0:03:00.6]} 3... a6 {[%clk 0:02:57.6]}
4. Ba4 {[%clk 0:03:01]} 4... Nf6 {[%clk 0:02:58.1]} 5. O-O {[%clk 0:03:00.9]}
5... Be7 {[%clk 0:02:58.7]} 6. Re1 {[%clk 0:03:01.4]} 6... b5 {[%clk 0:02:59.4]}
7. Bb3 {[%clk 0:03:01.5]} 7... d6 {[%clk 0:03:00.3]} 8. c3 {[%clk 0:03:01.7]}
8... O-O {[%clk 0:03:00.9]} 9. a4 {[%clk 0:03:01.8]} 9... b4 {[%clk 0:02:58.7]}
10. d4 {[%clk 0:02:59.8]} 10... Rb8 {[%clk 0:02:54.1]} 11. dxe5 {[%clk
0:02:47.8]} 11... Nxe5 {[%clk 0:02:46.1]} 12. Nxe5 {[%clk 0:02:46.8]} 12... dxe5
{[%clk 0:02:46.5]} 13. cxb4 {[%clk 0:02:37.9]} 13... Qxd1 {[%clk 0:02:39.6]} 14.
Rxd1 {[%clk 0:02:37.3]} 14... Rxb4 {[%clk 0:02:38.8]} 15. Bd5 {[%clk 0:02:23.9]}
15... Nxe4 {[%clk 0:02:34.2]} 16. Nc3 {[%clk 0:02:23.7]} 16... Nf6 {[%clk
0:02:29.6]} 17. b3 {[%clk 0:02:14.3]} 17... Bc5 {[%clk 0:02:25.6]} 18. Ba3
{[%clk 0:02:06.1]} 18... Bg4 {[%clk 0:02:11.1]} 19. Bf3 {[%clk 0:01:34.4]} 19...
Bxf3 {[%clk 0:02:00.8]} 20. gxf3 {[%clk 0:01:35.3]} 20... Rxb3 {[%clk
0:01:39.4]} 21. Bxc5 {[%clk 0:01:35]} 21... Rxc3 {[%clk 0:01:39.9]} 22. Bxf8
{[%clk 0:01:34.1]} 22... Kxf8 {[%clk 0:01:40.8]} 23. Rdc1 {[%clk 0:01:27.5]}
23... Rxf3 {[%clk 0:01:39.5]} 24. Rxc7 {[%clk 0:01:26.2]} 24... g6 {[%clk
0:01:32.4]} 25. Rb1 {[%clk 0:01:23.5]} 25... Nd5 {[%clk 0:01:31.7]} 26. Rc6
{[%clk 0:01:13.7]} 26... Ra3 {[%clk 0:01:23.2]} 27. Rxa6 {[%clk 0:01:11.5]}
27... Nf4 {[%clk 0:01:23.5]} 28. Ra8+ {[%clk 0:01:04.5]} 28... Kg7 {[%clk
0:01:23.4]} 29. a5 {[%clk 0:01:04.9]} 29... h5 {[%clk 0:01:21]} 30. h4 {[%clk
0:01:01.5]} 30... Ne2+ {[%clk 0:01:19.1]} 31. Kh2 {[%clk 0:00:57]} 31... Nf4
{[%clk 0:01:16.7]} 32. a6 {[%clk 0:00:55]} 32... Ra2 {[%clk 0:01:16.9]} 33. Kg3
{[%clk 0:00:43.9]} 33... Ra3+ {[%clk 0:01:15.7]} 34. f3 {[%clk 0:00:43.3]} 34...
Ne2+ {[%clk 0:01:16.2]} 35. Kf2 {[%clk 0:00:43]} 35... Nd4 {[%clk 0:01:16.5]}
36. a7 {[%clk 0:00:36.5]} 36... Rxf3+ {[%clk 0:01:13.5]} 37. Kg2 {[%clk
0:00:36.6]} 37... Ra3 {[%clk 0:01:12.8]} 38. Rb7 {[%clk 0:00:24.1]} 38... Ra2+
{[%clk 0:01:13]} 39. Kf1 {[%clk 0:00:23.5]} 39... Ra1+ {[%clk 0:01:13]} 40. Kf2
{[%clk 0:00:23.7]} 40... Ra2+ {[%clk 0:01:13.5]} 41. Ke1 {[%clk 0:00:24]} 41...
Ra1+ {[%clk 0:01:13.1]} 42. Kd2 {[%clk 0:00:24]} 42... Ra2+ {[%clk 0:01:13.5]}
43. Kc1 {[%clk 0:00:24.3]} 43... Nc6 {[%clk 0:01:11.3]} 44. Rc7 {[%clk
0:00:16.1]} 44... Ra1+ {[%clk 0:01:11.8]} 45. Kb2 {[%clk 0:00:16]} 45... Ra6
{[%clk 0:01:12.7]} 46. Rxc6 {[%clk 0:00:15.5]} 46... Rxc6 {[%clk 0:01:13]} 47.
Rg8+ {[%clk 0:00:15.7]} 47... Kf6 {[%clk 0:01:10]} 48. a8=Q {[%clk 0:00:16.6]}
48... Re6 {[%clk 0:01:08.5]} 49. Qd8+ {[%clk 0:00:16.7]} 49... Kf5 {[%clk
0:01:09]} 50. Rf8 {[%clk 0:00:17.2]} 50... f6 {[%clk 0:01:08.9]} 51. Qd7 {[%clk
0:00:17.6]} 51... e4 {[%clk 0:01:08]} 52. Re8 {[%clk 0:00:18]} 52... Kg4 {[%clk
0:01:08]} 53. Qxe6+ {[%clk 0:00:18.3]} 1-0

[Event "Early-Titled-Tuesday-Blitz-October-10-2023"]
[Site "Chess.com"]
[Date "2023.10.10"]
[Round "1"]
[White "Hooded_Old_Man"]
[Black "viktorskliarov"]
[Result "0-1"]
[WhiteElo "2364"]
[BlackElo "2649"]
[TimeControl "180+1"]
[EndTime "8:06:44 PDT"]
[Termination "viktorskliarov won by resignation"]

1. d4 {[%clk 0:02:59.6]} 1... Nf6 {[%clk 0:02:59]} 2. c4 {[%clk 0:02:59.4]} 2...
e6 {[%clk 0:02:59.3]} 3. Nf3 {[%clk 0:02:59.9]} 3... c5 {[%clk 0:02:58.7]} 4. d5
{[%clk 0:02:59.3]} 4... exd5 {[%clk 0:02:59.4]} 5. cxd5 {[%clk 0:02:59.3]} 5...
d6 {[%clk 0:03:00.3]} 6. Nc3 {[%clk 0:02:59.5]} 6... g6 {[%clk 0:03:00.8]} 7. h3
{[%clk 0:03:00.2]} 7... Bg7 {[%clk 0:03:01.3]} 8. e4 {[%clk 0:03:00.9]} 8... O-O
{[%clk 0:03:01.9]} 9. Bd3 {[%clk 0:03:01.5]} 9... a6 {[%clk 0:02:58.5]} 10. O-O
{[%clk 0:03:01.9]} 10... b5 {[%clk 0:02:58.3]} 11. Re1 {[%clk 0:03:02.4]} 11...
Nbd7 {[%clk 0:02:40.1]} 12. Bf4 {[%clk 0:03:02.9]} 12... Qb6 {[%clk 0:02:39.6]}
13. Qd2 {[%clk 0:02:59.6]} 13... Re8 {[%clk 0:02:37.1]} 14. Rad1 {[%clk
0:02:58.8]} 14... Bb7 {[%clk 0:02:24.8]} 15. Bc2 {[%clk 0:02:53]} 15... Nh5
{[%clk 0:02:01.9]} 16. Bh2 {[%clk 0:02:49.7]} 16... c4 {[%clk 0:01:51.1]} 17. a3
{[%clk 0:02:39.2]} 17... a5 {[%clk 0:01:30.6]} 18. g4 {[%clk 0:02:02.7]} 18...
Nhf6 {[%clk 0:01:27.6]} 19. e5 {[%clk 0:02:03.3]} 19... dxe5 {[%clk 0:01:24.4]}
20. Nxe5 {[%clk 0:02:02.3]} 20... b4 {[%clk 0:01:13.3]} 21. Na4 {[%clk
0:01:58.7]} 21... Qb5 {[%clk 0:01:08.3]} 22. Nxd7 {[%clk 0:01:27.8]} 22... Nxd7
{[%clk 0:01:06.6]} 23. Rxe8+ {[%clk 0:01:25]} 23... Rxe8 {[%clk 0:01:07.5]} 24.
axb4 {[%clk 0:01:25.4]} 24... axb4 {[%clk 0:01:06.4]} 25. b3 {[%clk 0:01:14.3]}
25... c3 {[%clk 0:00:51.6]} 26. Qd3 {[%clk 0:00:59.3]} 26... Qxd3 {[%clk
0:00:50.1]} 27. Rxd3 {[%clk 0:00:58.8]} 27... Re2 {[%clk 0:00:35.2]} 28. Bd1
{[%clk 0:00:52]} 28... c2 {[%clk 0:00:34.9]} 29. Bxc2 {[%clk 0:00:44.9]} 29...
Rxc2 {[%clk 0:00:35.8]} 30. Bd6 {[%clk 0:00:35.5]} 30... h5 {[%clk 0:00:27.4]}
31. gxh5 {[%clk 0:00:34.1]} 31... gxh5 {[%clk 0:00:27.5]} 32. Bxb4 {[%clk
0:00:34.7]} 32... Ne5 {[%clk 0:00:26.1]} 33. Rg3 {[%clk 0:00:33.6]} 33... Bxd5
{[%clk 0:00:24]} 34. Nc5 {[%clk 0:00:20]} 34... Rc1+ {[%clk 0:00:23.3]} 0-1